fUST/lending_fUST_20260404
["ID","MTS","AMOUNT","RATE_DAILY","PERIOD"]
[419654555,1775256638369,-500.0,0.00021996,2]
[419654556,1775256638378,-500.0,0.00021996,2]
[419654557,1775256638388,-500.0,0.00021996,2]
[419654558,1775256638398,-500.0,0.00021996,2]
[419654559,1775256638407,-500.0,0.00021996,2]
[419654560,1775256638416,-500.0,0.00021996,2]
[419654561,1775256638426,-500.0,0.00021996,2]
[419654562,1775256638435,-500.0,0.00021996,2]
[419654563,1775256638444,-500.0,0.00021996,2]
[419654564,1775256638454,-500.0,0.00021996,2]
[419654565,1775256638463,-500.0,0.00021996,2]
[419654566,1775256638472,-500.0,0.00021996,2]
[419654567,1775256638482,-500.0,0.00021996,2]
[419654568,1775256638491,-500.0,0.00021996,2]
[419654569,1775256638500,-500.0,0.00021996,2]
[419654570,1775256638509,-500.0,0.00021996,2]
[419654571,1775256638518,-500.0,0.00021996,2]
[419654572,1775256638527,-500.0,0.00021996,2]
[419654573,1775256638536,-365.46001862,0.00021996,2]
[419654574,1775256638545,-500.0,0.00021996,2]
[419654575,1775256638554,-500.0,0.00021996,2]
[419654576,1775256638563,-500.0,0.00021996,2]
[419654577,1775256638572,-500.0,0.00021996,2]
[419654578,1775256638581,-500.0,0.00021996,2]
[419654579,1775256638591,-500.0,0.00021996,2]
[419654580,1775256638600,-500.0,0.00021996,2]
[419654581,1775256638609,-164.43588797,0.00021996,2]
[419654582,1775256638619,-500.0,0.00021996,2]
[419654583,1775256638628,-500.0,0.00021996,2]
[419654584,1775256638637,-500.0,0.00021996,2]
[419654585,1775256638647,-500.0,0.00021996,2]
[419654586,1775256638656,-500.0,0.00021996,2]
[419654587,1775256638666,-500.0,0.00021996,2]
[419654588,1775256638675,-500.0,0.00021996,2]
[419654589,1775256638684,-500.0,0.00021996,2]
[419654590,1775256638694,-500.0,0.00021996,2]
[419654591,1775256638703,-500.0,0.00021996,2]
[419654592,1775256638810,-500.0,0.00021997,2]
[419654593,1775256638820,-186.60740577,0.00021999,2]
[419654594,1775256638829,-500.0,0.00021999,2]
[419654595,1775256638839,-500.0,0.00021999,2]
[419654596,1775256638848,-313.98249855,0.00021999,2]
[419654597,1775256638857,-500.0,0.00021999,2]
[419654598,1775256638866,-500.0,0.00021999,2]
[419654599,1775256638875,-500.0,0.00021999,2]
[419654600,1775256638884,-500.0,0.00021999,2]
[419654601,1775256638894,-500.0,0.00021999,2]
[419654602,1775256638915,-344.02316671,0.00021999,2]
[419654603,1775256638925,-427547.80714428,0.00022,2]
[419654604,1775256638936,-200.0,0.0002204,2]
[419654605,1775256638945,-200.0,0.00022041,2]
[419654606,1775256638956,-151.0,0.00022042,2]
[419654607,1775256638966,-151.0,0.00022097,2]
[419654608,1775256638976,-151.0,0.00022152,2]
[419654609,1775256638986,-275.83994422,0.00022207,2]
[419654610,1775256638996,-490.67317234,0.00022212,2]
[419654611,1775256639006,-883.21171022,0.00022212,2]
[419654612,1775256639016,-1570.1541515,0.00022212,2]
[419654613,1775256639026,-2453.36586172,0.00022212,2]
[419654614,1775256639036,-3529.31399404,0.00022212,2]
[419654615,1775256639046,-500.0,0.00022271,2]
[419654616,1775256639056,-664.66192685,0.00022521,2]
[419654617,1775256639066,-500.0,0.00022545,2]
[419654618,1775256639076,-3022.05830476,0.00022638,22]
[419654619,1775256639086,-500.0,0.00022819,2]
[419654620,1775256639096,-270.83333333,0.00023,2]
[419654621,1775256639106,-500.0,0.00023093,2]
[419654622,1775256639115,-151.2143139,0.00023266,2]
[419654623,1775256639125,-280.7985011,0.00023266,2]
[419654624,1775256639135,-455.2608298,0.00023266,2]
[419654625,1775256639145,-171.0,0.00023342,9]
[419654626,1775256639155,-10239.94,0.0002336,3]
[419654627,1775256639165,-5119.98,0.0002336,3]
[419654628,1775256639175,-2559.98,0.0002336,3]
[419654629,1775256639186,-270.83333333,0.0002336,3]
[419654630,1775256639196,-1280.0,0.0002336,3]
[419654631,1775256639206,-640.0,0.0002336,3]
[419654632,1775256639216,-640.0,0.0002336,3]
[419654633,1775256639227,-500.0,0.00023367,2]
[419654634,1775256639237,-151.0,0.00023381,2]
[419654635,1775256639247,-151.0,0.00023381,2]
[419654636,1775256639257,-182.452564,0.00023381,2]
[419654637,1775256639267,-362.95449252,0.00023381,2]
[419654638,1775256639279,-653.31808654,0.00023381,2]
[419654639,1775256639289,-1161.45437606,0.00023381,2]
[419654640,1775256639299,-1814.7724626,0.00023381,2]
[419654641,1775256639308,-2613.27234614,0.00023381,2]
[419654642,1775256639318,-3556.95402669,0.00023381,2]
[419654643,1775256639328,-4645.81750425,0.00023381,2]
[419654644,1775256639338,-5879.86277882,0.00023381,2]
[419654645,1775256639358,-7251.83076055,0.00023381,2]
[419654646,1775256639379,-420.0,0.00023523,2]
[419654647,1775256639389,-519.20750739,0.00023641,2]
[419654648,1775256639399,-1000.0,0.00023928,5]
[419654649,1775256639409,-599.60298507,0.00024108,2]
[419654650,1775256639418,-204.60062564,0.00024119,60]
[419654651,1775256639428,-454.9830812,0.00024176,2]
[419654652,1775256639438,-151.0,0.00024184,2]
[419654653,1775256639447,-643.0,0.00024272,2]
[419654654,1775256639456,-2201.0,0.00024272,2]
[419654655,1775256639466,-478.72,0.00024272,2]
[419654656,1775256639475,-487.0,0.00024272,2]
[419654657,1775256639485,-487.0,0.00024272,2]
[419654658,1775256639495,-487.0,0.00024272,2]
[419654659,1775256639504,-487.0,0.00024272,2]
[419654660,1775256639514,-487.0,0.00024272,2]
[419654661,1775256639523,-487.0,0.00024272,2]
[419654662,1775256639532,-487.0,0.00024272,2]
[419654663,1775256639542,-487.0,0.00024272,2]
[419654664,1775256639551,-487.0,0.00024272,2]
[419654665,1775256639561,-487.0,0.00024272,2]
[419654666,1775256639571,-487.0,0.00024272,2]
[419654667,1775256639580,-487.0,0.00024272,2]
[419654668,1775256639590,-487.0,0.00024272,2]
[419654669,1775256639599,-487.0,0.00024272,2]
[419654670,1775256639608,-487.0,0.00024272,2]
[419654671,1775256639618,-487.0,0.00024272,2]
[419654672,1775256639627,-803.15,0.00024272,2]
[419654673,1775256639637,-1167.9598897,0.00024402,2]
[419654674,1775256639647,-1167.9598897,0.00024427,2]
[419654675,1775256639657,-786.8981838,0.00024427,2]
[419654676,1775256639667,-152.427,0.00024612,2]
[419654677,1775256639677,-266.666,0.00024612,2]
[419654678,1775256639689,-372.46074419,0.00024612,2]
[419654679,1775256639700,-670.42933954,0.00024612,2]
[419654680,1775256639709,-1191.87438141,0.00024612,2]
[419654681,1775256639720,-161.53924907,0.00024612,2]
[419654682,1775256639732,-352.45953077,0.00024612,2]
[419654683,1775256639742,-342.86285241,0.00024612,2]
[419654684,1775256639752,-617.15313433,0.00024612,2]
[419654685,1775256639762,-151.0,0.00024612,2]
[419654686,1775256639771,-1862.30372095,0.00024612,2]
[419654687,1775256639782,-151.268153,0.00024612,2]
[419654688,1775256639793,-151.0,0.00024612,2]
[419654689,1775256639803,-2681.71735816,0.00024612,2]
[419654690,1775256639815,-634.42715538,0.00024612,2]
[419654691,1775256639825,-621.78829552,0.00024656,2]
[419654692,1775256639835,-1240.0,0.00024658,5]
[419654693,1775256639846,-151.0,0.00024658,2]
[419654694,1775256639857,-151.0,0.00024658,2]
[419654696,1775256639867,-151.0,0.00024658,2]
[419654697,1775256639878,-151.0,0.00024658,2]
[419654698,1775256639888,-151.0,0.00024658,2]
[419654699,1775256639897,-151.0,0.00024658,2]
[419654700,1775256639908,-173.981093,0.00024671,2]
[419654701,1775256639918,-1343.6225532,0.00024874,2]
[419654702,1775256639928,-151.0,0.000249,2]
[419654703,1775256639938,-61747.492297,0.000249,2]
[419654704,1775256639948,-5613.40839064,0.00024977,2]
[419654705,1775256639958,-200.0,0.00024987,3]
[419654706,1775256639970,-946.0,0.00024987,3]
[419654707,1775256639979,-155.0,0.00024987,3]
[419654708,1775256639988,-166.0,0.00024987,3]
[419654709,1775256639997,-946.0,0.00024987,3]
[419654710,1775256640007,-166.0,0.00024987,3]
[419654711,1775256640017,-155.0,0.00024987,3]
[419654712,1775256640027,-946.0,0.00024987,3]
[419654713,1775256640036,-166.0,0.00024987,3]
[419654714,1775256640046,-159.6342459,0.00024987,3]
[419654715,1775256640056,-166.0,0.00024987,3]
[419654716,1775256640065,-172.0,0.00024987,3]
[419654717,1775256640075,-946.0,0.00024987,3]
[419654718,1775256640085,-647.0,0.00024987,3]
[419654719,1775256640094,-166.0,0.00024987,3]
[419654720,1775256640103,-946.0,0.00024987,3]
[419654721,1775256640113,-647.0,0.00024987,3]
[419654722,1775256640122,-166.0,0.00024987,3]
[419654723,1775256640132,-647.0,0.00024987,3]
[419654724,1775256640142,-946.0,0.00024987,3]
[419654725,1775256640151,-166.61889007,0.00024987,3]
[419654726,1775256640161,-946.0,0.00024987,3]
[419654727,1775256640172,-946.0,0.00024987,3]
[419654728,1775256640182,-946.0,0.00024987,3]
[419654729,1775256640193,-946.0,0.00024987,3]
[419654730,1775256640205,-946.0,0.00024987,3]
[419654731,1775256640215,-946.0,0.00024987,3]
[419654732,1775256640224,-946.0,0.00024987,3]
[419654733,1775256640233,-946.0,0.00024987,3]
[419654734,1775256640244,-946.0,0.00024987,3]
[419654735,1775256640253,-946.0,0.00024987,3]
[419654736,1775256640263,-946.0,0.00024987,3]
[419654737,1775256640273,-946.0,0.00024987,3]
[419654738,1775256640283,-946.0,0.00024987,3]
[419654739,1775256640293,-946.0,0.00024987,3]
[419654740,1775256640303,-946.0,0.00024987,3]
[419654741,1775256640313,-946.0,0.00024987,3]
[419654742,1775256640323,-946.0,0.00024987,3]
[419654743,1775256640332,-946.0,0.00024987,3]
[419654744,1775256640341,-946.0,0.00024987,3]
[419654745,1775256640351,-946.0,0.00024987,3]
[419654746,1775256640360,-946.0,0.00024987,3]
[419654747,1775256640370,-946.0,0.00024987,3]
[419654748,1775256640379,-946.0,0.00024987,3]
[419654749,1775256640388,-930.06416302,0.00024987,3]
[419654750,1775256640398,-270.83333333,0.00024987,3]
[419654751,1775256640408,-151.0,0.00024987,2]
[419654752,1775256640417,-151.0,0.00024987,2]
[419654753,1775256640427,-188.0,0.00024987,2]
[419654754,1775256640437,-151.0,0.00024987,2]
[419654755,1775256640447,-260.6070772,0.00025018,2]
[419654756,1775256640456,-260.6070772,0.00025049,2]
[419654757,1775256640466,-175.5807177,0.00025049,2]
[419654758,1775256640475,-644.79446246,0.00025204,2]
[419654759,1775256640485,-1240.0,0.00025205,5]
[419654760,1775256640494,-173.76351733,0.0002521,9]
[419654761,1775256640504,-1097.1611277,0.0002522,2]
[419654762,1775256640513,-1640.860143,0.0002524,5]
[419654763,1775256640522,-1000.0,0.0002526,5]
[419654764,1775256640531,-1000.0,0.0002528,5]
[419654765,1775256640541,-500.96549497,0.00025284,2]
[419654766,1775256640550,-500.0,0.00025284,2]
[419654767,1775256640559,-500.0,0.00025284,2]
[419654769,1775256640569,-500.0,0.00025284,2]
[419654770,1775256640579,-2735.75356346,0.000253,2]
[419654772,1775256640588,-2735.75356344,0.000253,2]
[419654774,1775256640599,-2735.75356344,0.000253,2]
[419654776,1775256640608,-1000.0,0.000253,5]
[419654778,1775256640617,-1000.0,0.0002532,5]
[419654780,1775256640627,-1000.0,0.0002534,5]
[419654782,1775256640637,-2735.75356344,0.00025344,2]
[419654784,1775256640646,-181.349724,0.00025344,2]
[419654786,1775256640655,-151.0,0.00025344,2]
[419654788,1775256640664,-151.0,0.00025344,2]
[419654789,1775256640673,-151.0,0.00025344,2]
[419654790,1775256640683,-4266.91443639,0.00025344,2]
[419654791,1775256640692,-1000.0,0.0002536,5]
[419654792,1775256640702,-1000.0,0.0002538,5]
[419654793,1775256640711,-1248.129298,0.0002538,5]
[419654794,1775256640720,-300.155852,0.00025382,14]
[419654795,1775256640730,-276.485898,0.00025382,14]
[419654796,1775256640739,-200.103902,0.00025382,14]
[419654797,1775256640748,-184.323932,0.00025382,14]
[419654798,1775256640757,-445.013841,0.00025382,14]
[419654799,1775256640767,-411.325984,0.00025382,14]
[419654800,1775256640776,-315.278321,0.00025382,14]
[419654801,1775256640785,-290.427421,0.00025382,14]
[419654802,1775256640794,-210.185547,0.00025382,14]
[419654803,1775256640804,-193.618281,0.00025382,14]
[419654804,1775256640813,-1000.0,0.000254,5]
[419654805,1775256640822,-1000.0,0.000254,5]
[419654806,1775256640831,-44907.2671251,0.00025434,2]
[419654807,1775256640841,-565315.01547484,0.00025444,2]
[419654808,1775256640942,-1509.5865512,0.00025444,2]
[419654809,1775256640975,-1735.28959165,0.00025444,2]
[419654844,1775256643438,-272029.74788065,0.00025444,2]
[419654865,1775256646280,-669.27,0.00025444,2]
[419654866,1775256646338,-10448.39880365,0.00025444,2]
[419654867,1775256646350,-5590.80279193,0.00025444,2]
[419654868,1775256646396,-6070.70407332,0.00025444,2]
[419654887,1775256751903,166.88019,0.0002744,120]
[419654937,1775257280892,-466.53880659,0.00012768,2]
[419655044,1775257801142,92646.08866731,7e-05,2]
[419655849,1775257846254,-5000.0,0.00011664,2]
[419655851,1775257846263,-2480.32861818,0.00011782,2]
[419655853,1775257846276,-1161.6848572,0.00011782,2]
[419655855,1775257846285,-300.0,0.000119,2]
[419655857,1775257846295,-4179.49934648,0.00011901,2]
[419655859,1775257846305,-420.0,0.00013065,2]
[419655861,1775257846314,-1000.0,0.00013699,2]
[419655863,1775257846324,-587.0,0.00014344,2]
[419655865,1775257846333,-151.0,0.00014647,2]
[419655867,1775257846343,-823.0,0.00015748,2]
[419655869,1775257846352,-438.0,0.00017289,2]
[419655872,1775257846363,-2253.6280467,0.00018174,2]
[419655874,1775257846373,-5534.6239988,0.00020487,2]
[419655876,1775257846383,-154.0,0.00022,2]
[419655890,1775257846511,-152.0,0.00022,2]
[419655893,1775257846529,-159.0,0.00022,2]
[419655895,1775257846539,-159.0,0.00022,2]
[419655897,1775257846549,-181.0,0.00022,2]
[419655899,1775257846559,-1042.80563112,0.000225,2]
[419655901,1775257846569,-160.0,0.00022508,2]
[419655903,1775257846578,-160.0,0.00022508,2]
[419655905,1775257846590,-1000.0,0.00022556,30]
[419655908,1775257846601,-3646.46517776,0.00022628,2]
[419655910,1775257846611,-164.0,0.00023,2]
[419655912,1775257846620,-166.0,0.00023,2]
[419655914,1775257846630,-159.0,0.00023,2]
[419655916,1775257846639,-161.0,0.00023,2]
[419655918,1775257846648,-270.83333333,0.00023,2]
[419655920,1775257846658,-1000.28965534,0.00023,2]
[419655922,1775257846667,-181.0,0.00023014,7]
[419655924,1775257846677,-317.20484905,0.00023082,2]
[419655926,1775257846691,-2456.77215524,0.00023082,2]
[419655928,1775257846701,-5000.0,0.00023182,2]
[419655930,1775257846711,-5000.0,0.00023182,2]
[419655932,1775257846720,-169.0,0.0002337,10]
[419655934,1775257846730,-305.95,0.00023587,7]
[419655935,1775257846739,-2773.97700427,0.00024056,2]
[419655936,1775257846749,-151.0,0.00024056,2]
[419655937,1775257846759,-599.60298507,0.00024087,2]
[419655938,1775257846768,-599.60298507,0.00024087,2]
[419655939,1775257846778,-2398.4119403,0.00024087,2]
[419655940,1775257846788,-621.78829552,0.00024142,2]
[419655941,1775257846798,-183.0,0.00024164,7]
[419655942,1775257846807,-644.79446246,0.00024197,2]
[419655943,1775257846817,-2149.22486044,0.00024228,2]
[419655944,1775257846827,-668.65185757,0.00024252,2]
[419655945,1775257846837,-693.3919763,0.00024307,2]
[419655946,1775257846847,-719.04747942,0.00024362,2]
[419655947,1775257846856,-745.65223616,0.00024417,2]
[419655948,1775257846866,-500.0,0.00024417,2]
[419655949,1775257846875,-773.2413689,0.00024472,2]
[419655950,1775257846885,-500.0,0.00024525,2]
[419655951,1775257846894,-500.0,0.00024525,2]
[419655952,1775257846904,-632.91492804,0.00024525,2]
[419655953,1775257846914,-500.0,0.00024525,2]
[419655954,1775257846924,-500.0,0.00024525,2]
[419655955,1775257846934,-500.0,0.00024525,2]
[419655956,1775257846944,-500.0,0.00024525,2]
[419655957,1775257846955,-500.0,0.00024525,2]
[419655958,1775257846964,-500.0,0.00024525,2]
[419655959,1775257846975,-500.0,0.00024525,2]
[419655960,1775257846984,-500.0,0.00024525,2]
[419655961,1775257846994,-500.0,0.00024525,2]
[419655962,1775257847003,-500.0,0.00024525,2]
[419655963,1775257847012,-500.0,0.00024525,2]
[419655964,1775257847022,-500.0,0.00024525,2]
[419655965,1775257847032,-500.0,0.00024525,2]
[419655967,1775257847042,-500.0,0.00024525,2]
[419655968,1775257847051,-500.0,0.00024525,2]
[419655969,1775257847060,-500.0,0.00024525,2]
[419655971,1775257847070,-500.0,0.00024525,2]
[419655972,1775257847079,-500.0,0.00024525,2]
[419655974,1775257847089,-500.0,0.00024525,2]
[419655976,1775257847098,-500.0,0.00024525,2]
[419655979,1775257847109,-500.0,0.00024525,2]
[419655981,1775257847119,-500.0,0.00024525,2]
[419655983,1775257847128,-500.0,0.00024525,2]
[419655985,1775257847137,-500.0,0.00024525,2]
[419655987,1775257847147,-500.0,0.00024525,2]
[419655989,1775257847157,-500.0,0.00024525,2]
[419655991,1775257847166,-500.0,0.00024525,2]
[419655993,1775257847176,-500.0,0.00024525,2]
[419655995,1775257847186,-500.0,0.00024525,2]
[419655997,1775257847195,-500.0,0.00024525,2]
[419655999,1775257847205,-500.0,0.00024525,2]
[419656001,1775257847214,-500.0,0.00024525,2]
[419656003,1775257847224,-500.0,0.00024525,2]
[419656005,1775257847234,-500.0,0.00024525,2]
[419656007,1775257847243,-500.0,0.00024525,2]
[419656009,1775257847253,-500.0,0.00024525,2]
[419656011,1775257847262,-603.53340052,0.00024525,2]
[419656013,1775257847271,-500.0,0.00024525,2]
[419656015,1775257847281,-500.0,0.00024525,2]
[419656018,1775257847290,-500.0,0.00024525,2]
[419656021,1775257847299,-801.85129955,0.00024527,2]
[419656024,1775257847308,-831.51979763,0.00024582,2]
[419656026,1775257847318,-643.0,0.00024616,2]
[419656027,1775257847327,-2201.0,0.00024616,2]
[419656029,1775257847337,-621.78829552,0.00024635,2]
[419656031,1775257847347,-2487.15318209,0.00024635,2]
[419656034,1775257847357,-862.28603014,0.00024637,2]
[419656036,1775257847366,-1240.0,0.00024658,5]
[419656038,1775257847376,-500.0,0.00024691,2]
[419656040,1775257847386,-894.19061326,0.00024692,2]
[419656042,1775257847395,-927.27566595,0.00024747,2]
[419656044,1775257847405,-196.0732729,0.00024878,2]
[419656046,1775257847415,-455.1219556,0.00024947,2]
[419656048,1775257847424,-535639.71285499,0.00024949,2]
[419656050,1775257847433,-500.0,0.00024965,2]
[419656052,1775257847443,-500.35389016,0.00025,2]
[419656054,1775257847452,-2773.97700427,0.0002503,2]
[419656056,1775257847462,-1714.31426204,0.00025049,2]
[419656058,1775257847472,-1127.87049845,0.00025049,2]
[419656060,1775257847482,-1760.53535618,0.00025049,2]
[419656062,1775257847492,-164.45371253,0.00025049,2]
[419656064,1775257847502,-2095.52854423,0.00025049,2]
[419656066,1775257847514,-370.61538057,0.00025049,2]
[419656068,1775257847524,-644.79446246,0.00025183,2]
[419656070,1775257847533,-2579.17784983,0.00025183,2]
[419656072,1775257847542,-1240.0,0.00025205,5]
[419656074,1775257847552,-195.131,0.00025223,9]
[419656076,1775257847561,-500.0,0.00025239,2]
[419656078,1775257847570,-236.440064,0.00025382,14]
[419656080,1775257847580,-222.50692,0.00025382,14]
[419656082,1775257847590,-205.662992,0.00025382,14]
[419656084,1775257847599,-151.0,0.000254,15]
[419656086,1775257847608,-155.734,0.00025403,2]
[419656088,1775257847618,-200.0,0.00025403,2]
[419656090,1775257847627,-160.968,0.00025427,2]
[419656092,1775257847637,-11391.532768,0.00025438,2]
[419656094,1775257847647,-1343.6225532,0.00025438,2]
[419656096,1775257847656,-500.0,0.00025443,2]
[419656098,1775257847666,-590.8162167,0.00025443,2]
[419656100,1775257847675,-500.0,0.00025443,2]
[419656102,1775257847685,-229.01508603,0.00025443,2]
[419656104,1775257847694,-500.0,0.00025443,2]
[419656106,1775257847704,-500.0,0.00025443,2]
[419656108,1775257847714,-500.0,0.00025443,2]
[419656110,1775257847723,-482.39218526,0.00025443,2]
[419656112,1775257847732,-8094.27143227,0.00025444,2]
[419656114,1775257847744,-202147.08291323,0.00025444,2]
[419656116,1775257847756,-16105.45855777,0.00025444,2]
[419656119,1775257847769,-138407.43628998,0.00025444,2]
[419656121,1775257847780,-25849.86678596,0.00025444,2]
[419656123,1775257847791,-1225.22833613,0.00025444,2]
[419656414,1775258753014,29999.9989,0.00032876,120]
[419656479,1775259032177,-1000.0,0.00013699,2]
[419656481,1775259032187,-211.0,0.00022,2]
[419656483,1775259032197,-180.0,0.00022612,2]
[419656485,1775259032207,-14550.03811443,0.00022613,2]
[419656487,1775259032220,-830.33548557,0.00022613,2]
[419656488,1775259032229,-206.418903,0.00022717,2]
[419656490,1775259032239,-211.0,0.00023014,7]
[419656493,1775259032249,-158.0,0.0002337,10]
[419656495,1775259032259,-1827.81214636,0.00023786,2]
[419656497,1775259032270,-500.0,0.00023873,2]
[419656499,1775259032279,-500.0,0.00023873,2]
[419656501,1775259032289,-500.0,0.00023873,2]
[419656503,1775259032298,-500.0,0.00023873,2]
[419656505,1775259032307,-500.0,0.00023873,2]
[419656507,1775259032317,-451.89046507,0.00023873,2]
[419656736,1775259038348,-48.10953493,0.00023873,2]
[419656737,1775259038358,-510.31056022,0.00023886,2]
[419656740,1775259038368,-196.32490485,0.00023886,2]
[419656744,1775259038456,-303.67509515,0.00023886,2]
[419656745,1775259038466,-413.57135169,0.00023886,2]
[419656746,1775259038478,-500.0,0.00023886,2]
[419656747,1775259038488,-500.0,0.00023886,2]
[419656748,1775259038498,-208.57058872,0.00023886,2]
[419656768,1775259043650,-29.10394096,0.00023886,2]
[419656769,1775259043661,-348.10165867,0.00023886,2]
[419656770,1775259043671,-500.0,0.00023886,2]
[419656771,1775259043681,-500.0,0.00023886,2]
[419656772,1775259043691,-500.0,0.00023886,2]
[419656773,1775259043701,-360.35334005,0.00023886,2]
[419656774,1775259043711,-117588.63200084,0.00023887,2]
[419656775,1775259043723,-6650.25,0.00023887,2]
[419658476,1775260232378,-5000.0,0.00013562,2]
[419658477,1775260232388,-1000.0,0.00013699,2]
[419658478,1775260232398,-300.0,0.00022686,2]
[419658479,1775260232408,-1000.0,0.00022718,30]
[419658480,1775260232417,-1200.0,0.00023302,2]
[419658481,1775260232427,-196.2850388,0.00023303,2]
[419658482,1775260232437,-324.8899299,0.00023303,2]
[419658483,1775260232446,-156.0,0.00023397,10]
[419658484,1775260232456,-300.0,0.00023585,2]
[419658485,1775260232465,-300.0,0.00023585,2]
[419658486,1775260232475,-300.0,0.00023585,2]
[419658487,1775260232484,-300.0,0.00023585,2]
[419658488,1775260232494,-500.0,0.00023673,2]
[419658489,1775260232504,-500.0,0.00023673,2]
[419658490,1775260232525,-500.0,0.00023673,2]
[419658491,1775260232536,-500.0,0.00023673,2]
[419658492,1775260232546,-500.0,0.00023673,2]
[419658493,1775260232555,-500.0,0.00023673,2]
[419658494,1775260232565,-500.0,0.00023673,2]
[419658495,1775260232575,-500.0,0.00023673,2]
[419658496,1775260232585,-500.0,0.00023673,2]
[419658497,1775260232595,-500.0,0.00023673,2]
[419658498,1775260232605,-1284.02437238,0.00023676,3]
[419658499,1775260232646,1483.44134,0.00034736,120]
[419658523,1775260238631,-4494.92562762,0.00023676,3]
[419658525,1775260238642,-2889.48,0.00023676,3]
[419658527,1775260238651,-1444.74,0.00023676,3]
[419658529,1775260238661,-722.37,0.00023676,3]
[419658531,1775260238670,-270.83333333,0.00023676,3]
[419658533,1775260238679,-361.18,0.00023676,3]
[419658535,1775260238689,-180.59,0.00023676,3]
[419658536,1775260238698,-541.81,0.00023676,3]
[419658538,1775260238708,-500.0,0.00023685,2]
[419658540,1775260238718,-500.0,0.00023685,2]
[419658542,1775260238727,-500.0,0.00023685,2]
[419658544,1775260238737,-500.0,0.00023685,2]
[419658546,1775260238746,-500.0,0.00023685,2]
[419658548,1775260238756,-500.0,0.00023685,2]
[419658550,1775260238766,-500.0,0.00023685,2]
[419658552,1775260238775,-500.0,0.00023685,2]
[419658554,1775260238785,-500.0,0.00023685,2]
[419658556,1775260238794,-500.0,0.00023685,2]
[419658559,1775260238804,-500.0,0.00023685,2]
[419658561,1775260238814,-500.0,0.00023685,2]
[419658563,1775260238825,-500.0,0.00023685,2]
[419658565,1775260238835,-500.0,0.00023685,2]
[419658566,1775260238846,-500.0,0.00023685,2]
[419658568,1775260238855,-500.0,0.00023685,2]
[419658570,1775260238865,-500.0,0.00023685,2]
[419658573,1775260238875,-500.0,0.00023685,2]
[419658574,1775260238885,-500.0,0.00023685,2]
[419658576,1775260238894,-500.0,0.00023685,2]
[419658578,1775260238904,-500.0,0.00023685,2]
[419658580,1775260238914,-500.0,0.00023685,2]
[419658582,1775260238923,-500.0,0.00023685,2]
[419658584,1775260238933,-500.0,0.00023685,2]
[419658587,1775260238942,-397.66670377,0.00023685,2]
[419658588,1775260238952,-500.0,0.00023685,2]
[419658590,1775260238962,-500.0,0.00023685,2]
[419658592,1775260238971,-500.0,0.00023685,2]
[419658594,1775260238980,-500.0,0.00023685,2]
[419658597,1775260238991,-107.3861967,0.00023685,2]
[419658599,1775260239003,-392.6138033,0.00023685,2]
[419658601,1775260239012,-357.21739216,0.00023685,2]
[419658603,1775260239022,-500.0,0.00023685,2]
[419658605,1775260239031,-500.0,0.00023685,2]
[419658606,1775260239041,-500.0,0.00023685,2]
[419658607,1775260239050,-500.0,0.00023685,2]
[419658608,1775260239059,-250.0,0.00023685,2]
[419658609,1775260239069,-500.0,0.00023685,2]
[419658610,1775260239079,-500.0,0.00023685,2]